fUSD/lending_fUSD_20250811
["ID","MTS","AMOUNT","RATE_DAILY","PERIOD"]
[378561441,1754913084737,-3162.45,0.00017173,2]
[378561442,1754913084747,-1000.45,0.00017173,2]
[378561443,1754913084757,-1628.59,0.00017173,2]
[378561444,1754913084766,-400.0,0.00017173,2]
[378561445,1754913084775,-916.42,0.00017173,2]
[378561446,1754913084784,-951.52,0.00017173,2]
[378561447,1754913084793,-1036.79,0.00017173,2]
[378561448,1754913084803,-400.0,0.00017173,2]
[378561449,1754913084812,-4094.74,0.00017173,2]
[378561450,1754913084822,-518.37,0.00017173,2]
[378561451,1754913084830,-274.34,0.00017173,2]
[378561452,1754913084840,-445.03,0.00017173,2]
[378561453,1754913084849,-561.9,0.00017173,2]
[378561454,1754913084858,-277.024127,0.00017173,2]
[378561455,1754913084867,-358.39256372,0.00017173,2]
[378561456,1754913084877,-1757.59,0.00017173,2]
[378561457,1754913084887,-4776.03,0.00017173,2]
[378561458,1754913084896,-3424.67,0.00017173,2]
[378561459,1754913084906,-277.024127,0.00017173,2]
[378561460,1754913084916,-441.43,0.00017173,2]
[378561461,1754913084926,-151.0,0.00017173,2]
[378561462,1754913084935,-1865.46,0.00017173,2]
[378561463,1754913084944,-4516.83,0.00017173,2]
[378561464,1754913084954,-178.768374,0.00017173,2]
[378561465,1754913084963,-851.6,0.00017173,2]
[378561466,1754913084972,-3740.45,0.00017173,2]
[378561467,1754913084982,-400.0,0.00017173,2]
[378561468,1754913084991,-4648.91,0.00017173,2]
[378561469,1754913085002,-3770.26,0.00017173,2]
[378561470,1754913085011,-1381.04,0.00017173,2]
[378561471,1754913085020,-400.0,0.00017173,2]
[378561472,1754913085029,-400.0,0.00017173,2]
[378561473,1754913085038,-1807.77,0.00017173,2]
[378561474,1754913085048,-400.0,0.00017173,2]
[378561475,1754913085057,-1945.82,0.00017173,2]
[378561476,1754913085067,-400.0,0.00017173,2]
[378561477,1754913085076,-1876.26,0.00017173,2]
[378561478,1754913085086,-671.9,0.00017173,2]
[378561479,1754913085096,-671.9,0.00017173,2]
[378561480,1754913085105,-2063.2,0.00017173,2]
[378561481,1754913085114,-1978.2,0.00017173,2]
[378561482,1754913085124,-400.0,0.00017173,2]
[378561483,1754913085133,-403.15500832,0.00017173,2]
[378561484,1754913085142,-521.24,0.00017173,2]
[378561485,1754913085152,-463.37,0.00017173,2]
[378561486,1754913085161,-327.84206124,0.00017173,2]
[378561487,1754913085170,-2356.45,0.00017173,2]
[378561488,1754913085180,-2155.4,0.00017173,2]
[378561489,1754913085189,-400.0,0.00017173,2]
[378561490,1754913085199,-492.39,0.00017173,2]
[378561491,1754913085208,-2004.67,0.00017173,2]
[378561492,1754913085218,-1158.32,0.00017173,2]
[378561493,1754913085227,-2736.07,0.00017173,2]
[378561494,1754913085237,-1467.0,0.00017173,2]
[378561495,1754913085250,-2513.22,0.00017173,2]
[378561496,1754913085260,-734.51,0.00017173,2]
[378561497,1754913085269,-565.83,0.00017173,2]
[378561498,1754913085278,-819.78,0.00017173,2]
[378561499,1754913085288,-1082.13,0.00017173,2]
[378561500,1754913085298,-1712.61,0.00017173,2]
[378561501,1754913085307,-1066.33,0.00017173,2]
[378561502,1754913085316,-1721.6,0.00017173,2]
[378561503,1754913085326,-514.05,0.00017173,2]
[378561504,1754913085335,-2649.89,0.00017173,2]
[378561505,1754913085345,-400.0,0.00017173,2]
[378561506,1754913085354,-400.0,0.00017173,2]
[378561507,1754913085364,-540.88,0.00017173,2]
[378561508,1754913085374,-589.15,0.00017173,2]
[378561509,1754913085383,-400.0,0.00017173,2]
[378561510,1754913085392,-507.53,0.00017173,2]
[378561511,1754913085401,-838.96,0.00017173,2]
[378561512,1754913085410,-7631.99,0.00017173,2]
[378561513,1754913085420,-553.54,0.00017173,2]
[378561514,1754913085429,-455.40435764,0.00017173,2]
[378561515,1754913085438,-400.0,0.00017173,2]
[378561516,1754913085448,-3179.72,0.00017173,2]
[378561517,1754913085457,-400.0,0.00017173,2]
[378561518,1754913085467,-3179.72,0.00017173,2]
[378561519,1754913085476,-1649.72,0.00017173,2]
[378561520,1754913085486,-10000.0,0.00017173,2]
[378561521,1754913085496,-400.0,0.00017173,2]
[378561522,1754913085506,-1026.97,0.00017173,2]
[378561523,1754913085515,-10000.0,0.00017173,2]
[378561524,1754913085525,-983.44,0.00017173,2]
[378561525,1754913085534,-400.0,0.00017173,2]
[378561526,1754913085544,-435.35,0.00017173,2]
[378561527,1754913085553,-400.0,0.00017173,2]
[378561528,1754913085562,-2058.27,0.00017173,2]
[378561529,1754913085571,-158.92337,0.00017173,2]
[378561530,1754913085581,-400.0,0.00017173,2]
[378561531,1754913085590,-10000.0,0.00017173,2]
[378561532,1754913085600,-562.74,0.00017173,2]
[378561533,1754913085610,-562.74,0.00017173,2]
[378561534,1754913085619,-400.0,0.00017173,2]
[378561535,1754913085629,-158.92337,0.00017173,2]
[378561536,1754913085638,-1261.13,0.00017173,2]
[378561537,1754913085647,-3887.95,0.00017173,2]
[378561538,1754913085656,-2584.26,0.00017173,2]
[378561539,1754913085665,-400.0,0.00017173,2]
[378561540,1754913085674,-824.91,0.00017173,2]
[378561541,1754913085683,-2959.65,0.00017173,2]
[378561542,1754913085692,-167.42477977,0.00017173,2]
[378561543,1754913085702,-400.0,0.00017173,2]
[378561544,1754913085711,-1832.99,0.00017173,2]
[378561545,1754913085720,-1382.83,0.00017173,2]
[378561546,1754913085729,-400.0,0.00017173,2]
[378561547,1754913085739,-2066.07,0.00017173,2]
[378561548,1754913085748,-150.0,0.00017174,2]
[378561549,1754913085757,-501.0,0.00017174,5]
[378561550,1754913085766,-698.232335,0.00017174,2]
[378561551,1754913085775,-698.232335,0.00017174,2]
[378561552,1754913085785,-946.509576,0.00017174,2]
[378561553,1754913085794,-946.509576,0.00017174,2]
[378561554,1754913085803,-151.0,0.00017174,2]
[378561555,1754913085812,-151.0,0.00017174,2]
[378561556,1754913085822,-1253.107716,0.00017174,2]
[378561557,1754913085831,-1253.107716,0.00017174,2]
[378561558,1754913085840,-1048.866293,0.00017174,2]
[378561559,1754913085849,-1048.866293,0.00017174,2]
[378561560,1754913085860,-151.0,0.00017174,2]
[378561561,1754913085869,-1443.502461,0.00017174,2]
[378561562,1754913085878,-1443.502461,0.00017174,2]
[378561563,1754913085887,-1211.769302,0.00017174,2]
[378561564,1754913085897,-1211.769302,0.00017174,2]
[378561565,1754913085906,-400.0,0.00017174,2]
[378561566,1754913085916,-400.0,0.00017174,2]
[378561567,1754913085925,-400.0,0.00017174,2]
[378561568,1754913085935,-500.0,0.00017174,2]
[378561569,1754913085943,-500.0,0.00017174,2]
[378561570,1754913085953,-400.0,0.00017174,2]
[378561571,1754913085962,-400.0,0.00017174,2]
[378561572,1754913085971,-400.0,0.00017174,2]
[378561573,1754913085981,-162.582376,0.00017174,2]
[378561574,1754913085990,-151.0,0.00017174,2]
[378561575,1754913086000,-162.582376,0.00017174,2]
[378561576,1754913086009,-151.0,0.00017174,2]
[378561577,1754913086019,-151.0,0.00017174,2]
[378561578,1754913086028,-151.0,0.00017174,2]
[378561579,1754913086038,-400.0,0.00017174,2]
[378561580,1754913086048,-400.0,0.00017174,2]
[378561581,1754913086057,-400.0,0.00017174,2]
[378561582,1754913086067,-291.68625523,0.00017174,2]
[378561583,1754913086077,-995.24,0.00017174,2]
[378561584,1754913086086,-995.24,0.00017174,2]
[378561585,1754913086096,-178.140989,0.00017174,2]
[378561586,1754913086105,-178.140989,0.00017174,2]
[378561587,1754913086116,-311.8033,0.00017174,2]
[378561588,1754913086125,-457.345272,0.00017174,2]
[378561589,1754913086135,-311.8033,0.00017174,2]
[378561590,1754913086145,-457.345272,0.00017174,2]
[378561591,1754913086154,-11775.9,0.00017174,2]
[378561592,1754913086164,-400.0,0.00017174,2]
[378561593,1754913086173,-400.0,0.00017174,2]
[378561594,1754913086182,-400.0,0.00017174,2]
[378561595,1754913086192,-761.69,0.00017174,2]
[378561596,1754913086201,-500.0,0.00017174,2]
[378561597,1754913086210,-1358.43,0.00017174,2]
[378561598,1754913086219,-400.0,0.00017174,2]
[378561599,1754913086229,-400.0,0.00017174,2]
[378561600,1754913086241,-400.0,0.00017174,2]
[378561601,1754913086251,-400.0,0.00017174,2]
[378561602,1754913086262,-2429.72,0.00017174,2]
[378561603,1754913086271,-1946.54,0.00017174,2]
[378561604,1754913086281,-453.96,0.00017174,2]
[378561605,1754913086290,-400.0,0.00017174,2]
[378561606,1754913086300,-1185.2,0.00017174,2]
[378561607,1754913086313,-609.39,0.00017174,2]
[378561608,1754913086323,-778.26,0.00017174,2]
[378561609,1754913086334,-2904.7,0.00017174,2]
[378561610,1754913086344,-1224.12,0.00017174,2]
[378561611,1754913086352,-717.2,0.00017174,2]
[378561612,1754913086362,-151.0,0.00017174,2]
[378561613,1754913086373,-6259.19,0.00017174,2]
[378561614,1754913086382,-4172.867181,0.00017174,2]
[378561615,1754913086392,-4172.867181,0.00017174,2]
[378561616,1754913086404,-1777.62,0.00017174,2]
[378561617,1754913086414,-4172.867181,0.00017174,2]
[378561618,1754913086423,-4172.867181,0.00017174,2]
[378561619,1754913086432,-866.66,0.00017174,2]
[378561620,1754913086441,-1553.13,0.00017174,2]
[378561621,1754913086450,-409.02258097,0.00017174,2]
[378561622,1754913086460,-400.0,0.00017174,2]
[378561623,1754913086469,-2206.677674,0.00017174,2]
[378561624,1754913086479,-2206.677674,0.00017174,2]
[378561625,1754913086489,-2206.677674,0.00017174,2]
[378561626,1754913086499,-2206.677674,0.00017174,2]
[378561627,1754913086509,-490.02,0.00017174,2]
[378561628,1754913086519,-400.0,0.00017174,2]
[378561629,1754913086528,-729.89,0.00017174,2]
[378561630,1754913086537,-933.13,0.00017174,2]
[378561631,1754913086547,-360.809461,0.00017174,2]
[378561632,1754913086556,-360.809461,0.00017174,2]
[378561633,1754913086565,-360.809461,0.00017174,2]
[378561634,1754913086575,-360.809461,0.00017174,2]
[378561635,1754913086586,-400.0,0.00017174,2]
[378561636,1754913086599,-2159.12,0.00017174,2]
[378561637,1754913086610,-3049.08,0.00017174,2]
[378561638,1754913086619,-400.0,0.00017174,2]
[378561639,1754913086628,-400.0,0.00017174,2]
[378561640,1754913086638,-1644.46,0.00017174,2]
[378561641,1754913086647,-2839.76,0.00017174,2]
[378561642,1754913086657,-400.0,0.00017174,2]
[378561643,1754913086667,-1841.28,0.00017174,2]
[378561644,1754913086676,-400.0,0.00017174,2]
[378561645,1754913086685,-667.45,0.00017174,2]
[378561646,1754913086695,-400.0,0.00017174,2]
[378561647,1754913086704,-2730.28,0.00017174,2]
[378561648,1754913086713,-4574.56,0.00017174,2]
[378561649,1754913086723,-1203.04,0.00017174,2]
[378561650,1754913086731,-1161.97,0.00017174,2]
[378561651,1754913086740,-732.835776,0.00017174,2]
[378561652,1754913086749,-732.835776,0.00017174,2]
[378561653,1754913086758,-732.835776,0.00017174,2]
[378561654,1754913086768,-732.835776,0.00017174,2]
[378561655,1754913086777,-400.0,0.00017174,2]
[378561656,1754913086787,-400.0,0.00017174,2]
[378561657,1754913086796,-2769.67,0.00017174,2]
[378561658,1754913086805,-2073.14,0.00017174,2]
[378561659,1754913086815,-897.46,0.00017174,2]
[378561660,1754913086824,-1608.19,0.00017174,2]
[378561661,1754913086833,-1068.52,0.00017174,2]
[378561662,1754913086843,-667.36,0.00017174,2]
[378561663,1754913086852,-667.36,0.00017174,2]
[378561664,1754913086863,-400.0,0.00017174,2]
[378561665,1754913086872,-2151.59,0.00017174,2]
[378561666,1754913086881,-598.53,0.00017174,2]
[378561667,1754913086890,-1463.39,0.00017174,2]
[378561668,1754913086900,-1630.34,0.00017174,2]
[378561669,1754913086909,-4398.89,0.00017174,2]
[378561670,1754913086918,-287.257386,0.00017174,2]
[378561671,1754913086927,-2201.17,0.00017174,2]
[378561672,1754913086937,-2765.08,0.00017174,2]
[378561673,1754913086946,-287.257386,0.00017174,2]
[378561674,1754913086955,-345.624,0.00017174,2]
[378561675,1754913086965,-1343.77,0.00017174,2]
[378561676,1754913086974,-886.91,0.00017174,2]
[378561677,1754913086982,-3353.66,0.00017174,2]
[378561678,1754913086991,-2001.78,0.00017174,2]
[378561679,1754913087000,-345.624,0.00017174,2]
[378561680,1754913087010,-920.03,0.00017174,2]
[378561681,1754913087019,-2524.9,0.00017174,2]
[378561682,1754913087028,-2782.61,0.00017174,2]
[378561683,1754913087038,-279.810865,0.00017174,2]
[378561684,1754913087047,-1737.2,0.00017174,2]
[378561685,1754913087057,-400.0,0.00017174,2]
[378561686,1754913087067,-279.810865,0.00017174,2]
[378561687,1754913087079,-824.02,0.00017174,2]
[378561688,1754913087090,-792.57,0.00017174,2]
[378561689,1754913087100,-1651.26,0.00017174,2]
[378561690,1754913087110,-400.0,0.00017174,2]
[378561691,1754913087119,-5566.48,0.00017174,2]
[378561692,1754913087130,-1912.08,0.00017174,2]
[378561693,1754913087139,-859.38,0.00017174,2]
[378561694,1754913087150,-2915.81,0.00017174,2]
[378561695,1754913087159,-2989.76,0.00017174,2]
[378561696,1754913087168,-1246.63,0.00017174,2]
[378561697,1754913087177,-169.184007,0.00017174,2]
[378561698,1754913087186,-169.184007,0.00017174,2]
[378561699,1754913087195,-2770.87,0.00017174,2]
[378561700,1754913087205,-169.184007,0.00017174,2]
[378561701,1754913087215,-169.184007,0.00017174,2]
[378561702,1754913087224,-1848.47,0.00017174,2]
[378561703,1754913087233,-277.024127,0.00017174,2]
[378561704,1754913087244,-2310.09,0.00017174,2]
[378561705,1754913087254,-2797.11,0.00017174,2]
[378561706,1754913087264,-277.024127,0.00017174,2]
[378561707,1754913087272,-1434.78,0.00017174,2]
[378561708,1754913087282,-964.74,0.00017174,2]
[378561709,1754913087291,-151.0,0.00017174,2]
[378561710,1754913087301,-1229.39,0.00017174,2]
[378561711,1754913087310,-1197.11,0.00017174,2]
[378561712,1754913087320,-3106.15,0.00017174,2]
[378561713,1754913087329,-715.89,0.00017174,2]
[378561714,1754913087339,-671.9,0.00017174,2]
[378561715,1754913087348,-671.9,0.00017174,2]
[378561716,1754913087357,-400.0,0.00017174,2]
[378561717,1754913087367,-4413.0,0.00017174,2]
[378561718,1754913087376,-1019.63,0.00017174,2]
[378561719,1754913087386,-1289.6,0.00017174,2]
[378561720,1754913087395,-1053.69,0.00017174,2]
[378561721,1754913087404,-1021.38,0.00017174,2]
[378561722,1754913087414,-2236.64,0.00017174,2]
[378561723,1754913087423,-1225.59,0.00017174,2]
[378561724,1754913087433,-722.059711,0.00017174,2]
[378561725,1754913087443,-722.059711,0.00017174,2]
[378561726,1754913087453,-990.51,0.00017174,2]
[378561727,1754913087462,-2224.71,0.00017174,2]
[378561728,1754913087471,-400.0,0.00017174,2]
[378561729,1754913087482,-647.02,0.00017174,2]
[378561730,1754913087492,-1527.51,0.00017174,2]
[378561731,1754913087501,-1206.91,0.00017174,2]
[378561732,1754913087510,-3885.65,0.00017174,2]
[378561733,1754913087519,-3179.72,0.00017174,2]
[378561734,1754913087529,-3179.72,0.00017174,2]
[378561735,1754913087538,-1000.0,0.00017174,2]
[378561736,1754913087547,-1337.96,0.00017174,2]
[378561737,1754913087556,-10000.0,0.00017174,2]
[378561738,1754913087566,-3939.07,0.00017174,2]
[378561739,1754913087576,-10000.0,0.00017174,2]
[378561740,1754913087585,-400.0,0.00017174,2]
[378561741,1754913087594,-444.27,0.00017174,2]
[378561742,1754913087603,-584.75,0.00017174,2]
[378561743,1754913087614,-158.92337,0.00017174,2]
[378561744,1754913087623,-851.1,0.00017174,2]
[378561745,1754913087632,-8478.24212,0.00017174,2]
[378561746,1754913087641,-400.0,0.00017174,2]
[378561747,1754913087650,-562.74,0.00017174,2]
[378561748,1754913087659,-562.74,0.00017174,2]
[378561749,1754913087669,-158.92337,0.00017174,2]
[378561750,1754913087678,-562.74,0.00017174,2]
[378561751,1754913087688,-562.74,0.00017174,2]
[378561752,1754913087697,-562.97872552,0.00017174,2]
[378561753,1754913087706,-5655.06,0.00017174,2]
[378561754,1754913087715,-3247.91,0.00017174,2]
[378561755,1754913087724,-219.36587853,0.00017174,2]
[378561756,1754913087736,-1278.286218,0.00017175,2]
[378561757,1754913087745,-1278.286218,0.00017175,2]
[378561758,1754913087754,-1182.126922,0.00017175,2]
[378561759,1754913087764,-151.0,0.00017175,2]
[378561760,1754913087774,-1182.126922,0.00017175,2]
[378561761,1754913087784,-402.752787,0.00017175,2]
[378561762,1754913087794,-402.7527822,0.00017175,2]
[378561763,1754913087803,-698.232335,0.00017175,2]
[378561764,1754913087812,-698.232333,0.00017175,2]
[378561765,1754913087821,-1037.771539,0.00017175,2]
[378561766,1754913087830,-1037.771539,0.00017175,2]
[378561767,1754913087839,-1391.161039,0.00017175,2]
[378561768,1754913087848,-1391.161039,0.00017175,2]
[378561769,1754913087857,-946.509576,0.00017175,2]
[378561770,1754913087867,-946.509576,0.00017175,2]
[378561771,1754913087876,-2979.342315,0.00017175,2]
[378561772,1754913087886,-151.0,0.00017175,2]
[378561773,1754913087896,-1251.129203,0.00017175,2]
[378561774,1754913087906,-1251.129203,0.00017175,2]
[378561775,1754913087915,-151.0,0.00017175,2]
[378561776,1754913087925,-151.0,0.00017175,2]
[378561777,1754913087935,-1253.107716,0.00017175,2]
[378561778,1754913087945,-10000.0,0.00017175,2]
[378561779,1754913087955,-1253.107716,0.00017175,2]
[378561780,1754913087963,-10000.0,0.00017175,2]
[378561781,1754913087973,-1253.107716,0.00017175,2]
[378561782,1754913087982,-1253.107708,0.00017175,2]
[378561783,1754913087992,-10000.0,0.00017175,2]
[378561784,1754913088002,-2399.138981,0.00017175,2]
[378561785,1754913088011,-2399.138981,0.00017175,2]
[378561786,1754913088020,-379.164322,0.00017175,2]
[378561787,1754913088029,-379.164322,0.00017175,2]
[378561788,1754913088038,-691.460372,0.00017175,2]
[378561789,1754913088048,-691.460372,0.00017175,2]
[378561790,1754913088057,-338.838444,0.00017175,2]
[378561791,1754913088067,-338.838444,0.00017175,2]
[378561792,1754913088076,-1048.866293,0.00017175,2]
[378561793,1754913088086,-1048.866293,0.00017175,2]
[378561794,1754913088095,-1048.866293,0.00017175,2]
[378561795,1754913088105,-1048.866285,0.00017175,2]
[378561796,1754913088115,-151.0,0.00017175,2]
[378561797,1754913088124,-914.903255,0.00017175,2]
[378561798,1754913088135,-914.903255,0.00017175,2]
[378561799,1754913088144,-1443.502461,0.00017175,2]
[378561800,1754913088154,-1443.502461,0.00017175,2]
[378561801,1754913088163,-1211.769302,0.00017175,2]
[378561802,1754913088173,-1211.769302,0.00017175,2]
[378561803,1754913088182,-1211.769302,0.00017175,2]
[378561804,1754913088192,-1211.769305,0.00017175,2]
[378561805,1754913088202,-172.245218,0.00017175,2]
[378561806,1754913088212,-172.245218,0.00017175,2]
[378561807,1754913088221,-473.14,0.00017175,2]
[378561808,1754913088230,-400.0,0.00017175,2]
[378561809,1754913088241,-400.0,0.00017175,2]
[378561810,1754913088252,-400.0,0.00017175,2]
[378561811,1754913088261,-400.0,0.00017175,2]
[378561812,1754913088270,-785.69,0.00017175,2]
[378561813,1754913088280,-400.0,0.00017175,2]
[378561814,1754913088290,-400.0,0.00017175,2]
[378561815,1754913088299,-610.16,0.00017175,2]
[378561816,1754913088309,-7822.156241,0.00017175,2]
[378561817,1754913088319,-500.0,0.00017175,2]
[378561818,1754913088328,-636.91163843,0.00017175,2]
[378561819,1754913088338,-7822.156241,0.00017175,2]
[378561820,1754913088347,-500.46,0.00017175,2]
[378561821,1754913088356,-568.15,0.00017175,2]
[378561822,1754913088366,-400.0,0.00017175,2]
[378561823,1754913088375,-1197.3,0.00017175,2]
[378561824,1754913088385,-1110.34,0.00017175,2]
[378561825,1754913088396,-400.0,0.00017175,2]
[378561826,1754913088406,-162.582376,0.00017175,2]
[378561827,1754913088415,-400.0,0.00017175,2]
[378561828,1754913088546,-281.91,0.00017175,2]
[378561829,1754913088556,-162.582376,0.00017175,2]
[378561830,1754913088565,-784.14,0.00017175,2]
[378561831,1754913088575,-400.0,0.00017175,2]
[378561832,1754913088584,-400.0,0.00017175,2]
[378561833,1754913088593,-400.0,0.00017175,2]
[378561834,1754913088603,-400.0,0.00017175,2]
[378561835,1754913088612,-881.7,0.00017175,2]
[378561836,1754913088621,-531.36,0.00017175,2]
[378561837,1754913088631,-400.0,0.00017175,2]
[378561838,1754913088640,-400.0,0.00017175,2]
[378561839,1754913088649,-364.417769,0.00017175,2]
[378561840,1754913088658,-1292.81,0.00017175,2]
[378561841,1754913088667,-364.417769,0.00017175,2]
[378561842,1754913088677,-818.44,0.00017175,2]
[378561843,1754913088687,-1011.15,0.00017175,2]
[378561844,1754913088696,-1031.23,0.00017175,2]
[378561845,1754913088705,-400.0,0.00017175,2]
[378561846,1754913088714,-995.24,0.00017175,2]
[378561847,1754913088724,-995.24,0.00017175,2]
[378561848,1754913088733,-400.0,0.00017175,2]
[378561849,1754913088742,-400.0,0.00017175,2]
[378561850,1754913088751,-400.0,0.00017175,2]
[378561851,1754913088761,-400.0,0.00017175,2]
[378561852,1754913088771,-400.0,0.00017175,2]
[378561853,1754913088780,-400.0,0.00017175,2]
[378561854,1754913088789,-671.36,0.00017175,2]
[378561855,1754913088798,-490.88,0.00017175,2]
[378561856,1754913088807,-905.17,0.00017175,2]
[378561857,1754913088816,-178.140989,0.00017175,2]
[378561858,1754913088826,-1064.9,0.00017175,2]
[378561859,1754913088835,-178.140989,0.00017175,2]
[378561860,1754913088845,-892.04,0.00017175,2]
[378561861,1754913088855,-400.0,0.00017175,2]
[378561862,1754913088865,-252.84614999,0.00017175,2]
[378561863,1754913088874,-400.0,0.00017175,2]
[378561864,1754913088883,-400.0,0.00017175,2]
[378561865,1754913088893,-942.14,0.00017175,2]
[378561866,1754913088902,-1106.68,0.00017175,2]
[378561867,1754913088912,-400.0,0.00017175,2]
[378561868,1754913088921,-479.3563521,0.00017175,2]
[378561869,1754913088930,-400.0,0.00017175,2]
[378561870,1754913088940,-400.0,0.00017175,2]
[378561871,1754913088949,-260.25188648,0.00017175,2]
[378561872,1754913088958,-400.0,0.00017175,2]
[378561873,1754913088967,-497.20897256,0.00017175,2]
[378561874,1754913088977,-400.0,0.00017175,2]
[378561875,1754913088986,-400.0,0.00017175,2]
[378561876,1754913088996,-400.0,0.00017175,2]
[378561877,1754913089006,-1052.13,0.00017175,2]
[378561878,1754913089015,-400.0,0.00017175,2]
[378561879,1754913089025,-400.0,0.00017175,2]
[378561880,1754913089034,-1101.67,0.00017175,2]
[378561881,1754913089043,-797.74,0.00017175,2]
[378561882,1754913089052,-311.8033,0.00017175,2]
[378561883,1754913089062,-311.8033,0.00017175,2]
[378561884,1754913089071,-457.345272,0.00017175,2]
[378561885,1754913089081,-509.05,0.00017175,2]
[378561886,1754913089090,-400.0,0.00017175,2]
[378561887,1754913089101,-311.8033,0.00017175,2]
[378561888,1754913089110,-311.803302,0.00017175,2]
[378561889,1754913089120,-457.345272,0.00017175,2]
[378561890,1754913089131,-400.0,0.00017175,2]
[378561891,1754913089140,-867.17,0.00017175,2]
[378561892,1754913089150,-400.0,0.00017175,2]
[378561893,1754913089160,-400.0,0.00017175,2]
[378561894,1754913089170,-400.0,0.00017175,2]
[378561895,1754913089179,-400.0,0.00017175,2]
[378561896,1754913089188,-400.0,0.00017175,2]
[378561897,1754913089198,-461.42,0.00017175,2]
[378561898,1754913089207,-400.0,0.00017175,2]
[378561899,1754913089217,-400.0,0.00017175,2]
[378561900,1754913089226,-306.834118,0.00017175,2]
[378561901,1754913089236,-1324.87,0.00017175,2]
[378561902,1754913089249,-400.0,0.00017175,2]
[378561903,1754913089259,-400.0,0.00017175,2]
[378561904,1754913089268,-306.834118,0.00017175,2]
[378561905,1754913089278,-400.0,0.00017175,2]
[378561906,1754913089287,-421.63,0.00017175,2]
[378561907,1754913089297,-741.06,0.00017175,2]
[378561908,1754913089306,-575.31,0.00017175,2]
[378561909,1754913089316,-400.0,0.00017175,2]
[378561910,1754913089326,-1082.33,0.00017175,2]
[378561911,1754913089335,-1024.95,0.00017175,2]
[378561912,1754913089344,-400.0,0.00017175,2]
[378561913,1754913089353,-1071.51,0.00017175,2]
[378561914,1754913089363,-400.0,0.00017175,2]
[378561915,1754913089372,-400.0,0.00017175,2]
[378561916,1754913089381,-271.33987268,0.00017175,2]
[378561917,1754913089391,-400.0,0.00017175,2]
[378561918,1754913089400,-697.27,0.00017175,2]
[378561919,1754913089409,-405.72668074,0.00017175,2]
[378561920,1754913089419,-400.0,0.00017175,2]
[378561921,1754913089428,-410.96,0.00017175,2]
[378561922,1754913089437,-419.42781582,0.00017175,2]
[378561923,1754913089446,-500.0,0.00017175,2]
[378561924,1754913089456,-400.0,0.00017175,2]
[378561925,1754913089465,-402.79631696,0.00017175,2]
[378561926,1754913089474,-400.0,0.00017175,2]
[378561927,1754913089483,-400.0,0.00017175,2]
[378561928,1754913089492,-400.0,0.00017175,2]
[378561929,1754913089502,-400.0,0.00017175,2]
[378561930,1754913089511,-153.78,0.00017175,2]
[378561931,1754913089521,-400.0,0.00017175,2]
[378561932,1754913089530,-400.0,0.00017175,2]
[378561933,1754913089539,-400.0,0.00017175,2]
[378561934,1754913089549,-400.0,0.00017175,2]
[378561935,1754913089559,-400.0,0.00017175,2]
[378561936,1754913089568,-400.0,0.00017175,2]
[378561937,1754913089578,-151.0,0.00017175,2]
[378561938,1754913089588,-400.0,0.00017175,2]
[378561939,1754913089597,-157.76,0.00017175,2]
[378561940,1754913089606,-629.24,0.00017175,2]